bitfinex/quotes_SOLUSD_20251006
["timestamp","ask_amount","ask_price","bid_price","bid_amount"]
[1759738967301,10.87647521,232.86,232.78,20.8]
[1759738967483,11.55647521,232.86,232.79,30.32]
[1759738967686,0.68,232.85,232.8,30.32]
[1759738968010,0.71,232.84,232.8,30.32]
[1759738968214,0.71,232.83,232.8,30.32]
[1759738968386,0.71,232.83,232.8,30.34]
[1759738968589,4.29516364,232.82,232.8,30.34]
[1759738969104,5.00516364,232.82,232.8,30.34]
[1759738969293,5.00516364,232.82,232.8,30.32]
[1759738970696,5.00516364,232.82,232.76,4.29626216]
[1759738971009,5.00516364,232.82,232.8,30.32]
[1759738971908,5.00516364,232.82,232.75,4.29644538]
[1759738972108,5.00516364,232.82,232.76,30.32]
[1759738972689,0.71,232.82,232.76,30.32]
[1759738973598,89.83692153,232.85,232.76,30.32]
[1759738973599,26.61825668,232.84,232.76,30.32]
[1759738973906,15.74178147,232.84,232.76,34.61618786]
[1759738975895,15.03178147,232.84,232.76,34.61618786]
[1759738976205,4.29516364,232.82,232.76,34.61618786]
[1759738976403,4.29516364,232.82,232.74,20.8]
[1759738976404,0.71,232.81,232.74,25.0964577]
[1759738976595,0.71,232.81,232.77,30.3]
[1759738977102,15.03307275,232.82,232.77,30.3]
[1759738977308,0.71,232.8,232.77,30.3]
[1759738977614,5.00569009,232.8,232.77,30.3]
[1759738978315,0.71,232.82,232.77,30.3]
[1759738978618,0.71,232.81,232.77,30.3]
[1759738980110,0.71,232.81,232.76,4.29626748]
[1759738980312,4.29551396,232.81,232.77,30.28]
[1759738980511,0.71,232.86,232.77,30.28]
[1759738980819,21.61170957,232.88,232.77,33.85215887]
[1759738981002,22.32170957,232.88,232.77,33.85215887]
[1759738981406,26.61576659,232.88,232.78,4.2959017]
[1759738981606,5.00405702,232.88,232.78,18.60781484]
[1759738982314,5.00405702,232.88,232.79,3.57215887]
[1759738982698,0.71,232.88,232.8,15.03436425]
[1759738982901,5.00414264,232.88,232.81,33.85215887]
[1759738983098,5.00414264,232.88,232.82,3.57215887]
[1759738983303,5.00414264,232.88,232.81,33.85215887]
[1759738984095,4.29414264,232.88,232.81,33.85215887]
[1759738984595,4.29414264,232.88,232.82,3.57215887]
[1759738984814,0.71,232.9,232.83,4.29497916]
[1759738986322,5.00373816,232.9,232.83,4.29497916]
[1759738986790,5.00373816,232.9,232.81,44.5903129]
[1759738986791,4.29373816,232.9,232.81,7.86738922]
[1759738986990,0.71,232.89,232.82,30.26]
[1759738987189,0.71,232.89,232.8,3.57215887]
[1759738987408,0.71,232.88,232.81,30.26]
[1759738987617,0.71,232.87,232.81,30.26]
[1759738988018,5.00437708,232.87,232.81,30.26]
[1759738988600,5.00437708,232.87,232.81,34.55532601]
[1759738989730,5.00437708,232.87,232.81,4.29532601]
[1759738990023,0.71,232.86,232.82,30.26]
[1759738990318,0.71,232.85,232.82,30.26]
[1759738990520,0.71,232.84,232.82,30.26]
[1759738990723,0.71,232.83,232.77,3.57215887]
[1759738990924,0.71,232.83,232.78,30.26]
[1759738991298,0.71,232.82,232.78,30.26]
[1759738991499,0.71,232.84,232.78,30.26]
[1759738992126,4.29497916,232.83,232.76,25.09611225]
[1759738992305,4.29497916,232.83,232.77,30.26]
[1759738992524,0.71,232.84,232.77,30.26]
[1759738992712,15.17090104,232.86,232.77,30.26]
[1759738993639,15.88090104,232.86,232.77,30.26]
[1759738993922,15.88090104,232.86,232.78,4.2959017]
[1759738994130,5.00442583,232.86,232.78,4.2959017]
[1759738994512,0.71,232.85,232.78,4.2959017]
[1759738995322,0.71,232.84,232.78,4.2959017]
[1759738995639,0.71,232.84,232.77,4.29605942]
[1759738995828,0.71,232.84,232.79,30.26]
[1759738996028,5.00497916,232.83,232.79,30.26]
[1759738996837,5.00497916,232.83,232.8,30.26]
[1759738998813,5.00497916,232.83,232.81,30.26]
[1759738999317,4.29497916,232.83,232.81,30.26]
[1759738999512,0.7,232.82,232.81,30.26]
[1759739000537,4.99516364,232.82,232.81,30.26]
[1759739000836,4.99516364,232.82,232.8,30.26]
[1759739001019,0.7,232.81,232.8,30.26]
[1759739002025,0.7,232.81,232.74,7.86873363]
[1759739002026,4.99534813,232.81,232.74,7.86873363]
[1759739002254,0.7,232.8,232.74,3.57215887]
[1759739002423,0.7,232.79,232.75,30.26]
[1759739002799,0.7,232.78,232.75,30.26]
[1759739003543,0.7,232.8,232.75,30.26]
[1759739003713,4.29518401,232.82,232.75,30.26]
[1759739004123,4.29518401,232.82,232.75,34.55630701]
[1759739006925,10.73573882,232.87,232.75,45.29744557]
[1759739007129,15.87090104,232.86,232.75,48.86960444]
[1759739007333,0.7,232.85,232.75,48.86960444]
[1759739007702,15.17090104,232.86,232.75,48.86960444]
[1759739007906,0.7,232.85,232.75,48.86960444]
[1759739008311,4.2947947,232.84,232.75,48.86960444]
[1759739008628,4.9947947,232.84,232.75,48.86960444]
[1759739011323,4.9947947,232.84,232.75,38.12846588]
[1759739012622,79.8,232.87,232.75,38.12846588]
[1759739012811,79.8,232.87,232.78,20.8]
[1759739013019,79.8,232.87,232.79,30.26]
[1759739013429,4.29442583,232.86,232.8,4.29553264]
[1759739013625,79.1,232.87,232.8,4.29553264]
[1759739014426,79.81,232.87,232.8,4.29553264]
[1759739015339,84.10426487,232.87,232.8,4.29553264]
[1759739016538,0.71,232.86,232.8,4.29553264]
[1759739019946,83.39426487,232.87,232.8,4.29553264]
[1759739019947,79.1,232.87,232.8,4.29553264]
[1759739020150,14.00294113,233.21,232.82,20.8]
[1759739020151,10.73219676,232.95,232.82,20.8]
[1759739020324,0.71,232.91,232.83,30.26]
[1759739021446,0.71,232.91,232.84,4.2947947]
[1759739022158,5.00368022,232.91,232.84,4.2947947]
[1759739022354,15.16961048,232.93,232.84,4.2947947]
[1759739022552,0.71,232.9,232.83,30.26]
[1759739024156,5.00385069,232.9,232.83,34.55493446]
[1759739025458,0.71,232.89,232.83,34.55493446]
[1759739026547,0.71,232.88,232.82,20.8]
[1759739026860,0.71,232.87,232.83,30.26]
[1759739027077,0.71,232.86,232.83,30.26]
[1759739027242,0.71,232.88,232.83,30.26]
[1759739027570,0.71,232.87,232.83,30.26]
[1759739027882,0.66,232.87,232.83,30.26]
[1759739028041,0.66,232.86,232.83,30.26]
[1759739028745,4.95447263,232.86,232.83,30.26]
[1759739028956,4.29447263,232.86,232.83,30.26]
[1759739029156,0.66,232.85,232.83,30.26]
[1759739030260,10.73422069,232.9,232.83,30.26]
[1759739030461,0.66,232.87,232.83,30.26]
[1759739030764,0.66,232.86,232.83,30.26]
[1759739032871,4.95408382,232.88,232.83,30.26]
[1759739033167,79.1,232.89,232.83,30.26]
[1759739034170,83.39389524,232.89,232.83,34.55491845]
[1759739035048,0.66,232.88,232.83,30.26]
[1759739035359,0.66,232.87,232.83,30.26]
[1759739036173,0.66,232.86,232.83,30.26]
[1759739036467,0.66,232.86,232.82,20.8]
[1759739036666,0.66,232.86,232.84,30.24]
[1759739037053,0.66,232.86,232.85,30.24]
[1759739037766,4.29430772,232.87,232.85,30.24]
[1759739038068,0.66,232.86,232.82,20.8]
[1759739038280,0.66,232.85,232.79,24.39128859]
[1759739038578,0.66,232.85,232.8,30.24]
[1759739039067,4.29430772,232.87,232.8,4.29539768]
[1759739039241,0.66,232.86,232.81,51.04]
[1759739039446,0.66,232.85,232.81,51.04]
[1759739040346,4.95430772,232.87,232.81,51.04]
[1759739040977,4.29430772,232.87,232.81,20.8]
[1759739041181,0.66,232.86,232.82,30.24]
[1759739042651,0.66,232.85,232.82,30.24]
[1759739045251,4.95462814,232.85,232.82,30.24]
[1759739045459,0.66,232.84,232.82,30.24]
[1759739045673,0.66,232.83,232.78,14.326188]
[1759739045880,0.66,232.82,232.79,30.24]
[1759739046381,0.66,232.84,232.79,30.24]
[1759739046676,4.29462814,232.85,232.79,30.24]
[1759739046976,0.66,232.84,232.8,4.29553264]
[1759739047180,0.66,232.86,232.8,4.29553264]
[1759739048967,0.66,232.85,232.79,34.53569411]
[1759739049273,0.66,232.85,232.74,9.5842298]
[1759739049274,10.87647521,232.81,232.73,3.59128859]
[1759739049481,0.66,232.8,232.74,30.24]
[1759739049787,0.66,232.79,232.74,30.24]
[1759739049966,0.66,232.78,232.74,30.24]
[1759739050780,0.66,232.77,232.74,30.24]
[1759739050957,0.66,232.76,232.74,30.24]
[1759739051480,10.87647521,232.8,232.74,30.24]
[1759739051659,0.66,232.78,232.74,30.24]
[1759739051860,0.66,232.8,232.74,34.53663155]
[1759739052065,0.66,232.82,232.74,55.33663155]
[1759739053271,0.66,232.81,232.77,20.8]
[1759739053479,10.73719976,232.84,232.78,30.24]
[1759739053668,0.66,232.83,232.78,30.24]
[1759739053871,0.66,232.82,232.78,30.24]
[1759739054071,10.73719976,232.84,232.78,30.24]
[1759739054274,0.66,232.81,232.78,30.24]
[1759739054581,0.66,232.8,232.78,30.24]
[1759739055486,15.03199446,232.84,232.78,30.24]
[1759739055669,0.66,232.8,232.78,30.24]
[1759739056488,0.66,232.83,232.78,30.24]
[1759739056684,0.66,232.82,232.78,30.24]
[1759739057091,0.66,232.81,232.78,30.24]
[1759739057262,0.66,232.8,232.78,30.24]
[1759739057459,0.66,232.79,232.78,30.24]
[1759739058182,4.95571716,232.79,232.78,30.24]
[1759739058372,5.01571716,232.79,232.77,20.8]
[1759739058588,4.29571716,232.79,232.78,30.24]
[1759739059094,5.01571716,232.79,232.74,20.8]
[1759739059274,0.72,232.78,232.77,20.8]
[1759739059475,5.0159017,232.78,232.77,20.8]
[1759739060289,5.0159017,232.78,232.74,20.8]
[1759739060602,10.73858186,232.81,232.78,20.8]
[1759739060978,11.59647521,232.8,232.73,20.8]
[1759739061176,0.72,232.79,232.74,30.24]
[1759739061395,0.72,232.78,232.77,20.8]
[1759739062495,5.01571716,232.79,232.78,20.8]
[1759739063495,0.72,232.82,232.78,20.8]
[1759739063700,0.72,232.82,232.79,30.24]
[1759739064082,0.72,232.81,232.79,30.24]
[1759739064280,83.39481752,232.84,232.79,30.24]
[1759739065012,84.11481752,232.84,232.79,30.24]
[1759739066200,5.01509019,232.83,232.79,30.24]
[1759739067593,79.1,232.84,232.79,30.24]
[1759739067905,79.82,232.84,232.79,30.24]
[1759739068703,0.72,232.83,232.79,30.24]
[1759739069101,0.72,232.83,232.77,4.29608626]
[1759739069295,5.01499415,232.83,232.81,20.8]
[1759739069491,5.01499415,232.83,232.82,30.24]
[1759739070406,79.1,232.84,232.82,30.24]
[1759739070789,79.82,232.84,232.82,30.24]
[1759739072020,79.1,232.84,232.82,30.24]
[1759739072189,5.01437358,232.87,232.85,20.8]
[1759739072394,5.01442583,232.86,232.85,51.02]
[1759739073205,0.72,232.86,232.85,51.02]
[1759739073412,10.73502434,232.89,232.85,51.02]
[1759739073413,10.87647521,232.89,232.85,51.02]
[1759739073712,0.72,232.88,232.85,51.02]
[1759739073900,0.72,232.87,232.85,51.02]
[1759739074087,0.7,232.86,232.85,51.02]
[1759739074598,4.99442583,232.86,232.85,51.02]
[1759739075287,4.99442583,232.86,232.81,3.48268361]
[1759739075488,4.99442583,232.86,232.85,20.8]
[1759739075805,4.99442583,232.86,232.85,51.02]
[1759739077211,0.7,232.86,232.85,51.02]
[1759739078099,0.7,232.86,232.85,30.22]
[1759739078488,15.17034785,232.89,232.85,30.22]
[1759739078690,0.7,232.88,232.84,20.8]
[1759739078890,0.7,232.87,232.85,30.22]
[1759739079116,0.7,232.87,232.86,30.22]
[1759739079817,0.7,232.87,232.84,20.8]
[1759739079818,4.99440084,232.87,232.84,20.8]
[1759739080016,4.99440084,232.87,232.86,30.22]
[1759739080820,4.99440084,232.87,232.84,20.8]
[1759739081013,25.90502945,232.89,232.86,30.22]
[1759739081618,0.7,232.88,232.86,30.22]
[1759739081913,0.7,232.87,232.81,3.5275864]
[1759739082223,0.7,232.87,232.85,20.8]
[1759739082394,0.7,232.87,232.86,30.22]
[1759739082595,25.90502945,232.89,232.86,30.22]
[1759739082906,4.29424142,232.87,232.86,30.22]
[1759739083115,4.99424142,232.87,232.81,3.38629072]
[1759739083312,0.7,232.86,232.85,20.8]
[1759739083622,4.29424142,232.87,232.85,20.8]
[1759739083914,0.7,232.86,232.85,20.8]
[1759739084125,11.57647521,232.91,232.88,20.8]
[1759739084301,11.57647521,232.91,232.89,30.22]
[1759739084302,0.7,232.9,232.89,30.22]
[1759739085498,4.99368827,232.9,232.89,30.22]
[1759739087307,0.7,232.92,232.89,30.22]
[1759739087707,4.29296661,232.94,232.92,20.8]
[1759739087906,0.71,232.93,232.92,20.8]
[1759739088224,0.71,232.93,232.92,51.02]
[1759739088623,0.71,232.93,232.92,30.22]
[1759739089723,10.87647521,232.92,232.81,7.07397637]
[1759739090019,10.87647521,232.9,232.82,30.22]
[1759739090224,0.71,232.89,232.83,30.2]
[1759739090428,0.71,232.88,232.83,30.2]
[1759739090613,0.71,232.87,232.83,30.2]
[1759739090927,0.71,232.89,232.83,30.2]
[1759739091331,0.71,232.89,232.86,20.8]
[1759739091622,0.71,232.89,232.86,51.0]
[1759739093229,4.29405702,232.88,232.86,51.0]
[1759739093425,5.00387853,232.89,232.86,51.0]
[1759739093811,4.29387853,232.89,232.86,51.0]
[1759739094220,5.00387853,232.89,232.86,51.0]
[1759739094523,0.71,232.88,232.86,51.0]
[1759739094908,0.71,232.88,232.87,30.2]
[1759739095405,5.00405702,232.88,232.87,30.2]
[1759739095819,0.71,232.88,232.87,30.2]
[1759739096016,4.29404273,232.89,232.87,30.2]
[1759739096218,5.00404273,232.89,232.87,30.2]
[1759739097337,10.87647521,232.91,232.87,30.2]
[1759739097834,11.58647521,232.91,232.87,30.2]
[1759739098214,0.71,232.9,232.87,30.2]
[1759739098529,4.29387264,232.89,232.87,30.2]
[1759739098744,0.71,232.9,232.87,30.2]
[1759739098745,0.71,232.93,232.87,30.2]
[1759739098935,0.71,232.93,232.87,51.0]
[1759739099234,0.71,232.92,232.87,51.0]
[1759739099434,0.71,232.91,232.87,51.0]
[1759739100005,0.71,232.9,232.88,30.2]
[1759739100326,5.00385858,232.9,232.88,30.2]
[1759739101315,0.71,232.89,232.88,30.2]
[1759739101835,4.29385858,232.9,232.88,30.2]
[1759739102027,5.00385858,232.9,232.88,30.2]
[1759739102230,5.00385858,232.9,232.84,20.8]
[1759739102530,5.00385858,232.9,232.88,20.8]
[1759739102711,5.00385858,232.9,232.89,30.2]
[1759739112640,10.87647521,232.89,232.8,3.59128859]
[1759739112843,10.87647521,232.89,232.78,3.59128859]
[1759739112844,10.87647521,232.87,232.78,3.59128859]
[1759739113021,10.87647521,232.85,232.76,7.09624054]
[1759739113222,0.71,232.84,232.77,30.18]
[1759739113411,0.71,232.83,232.8,20.8]
[1759739113618,0.71,232.82,232.74,3.59128859]
[1759739113842,10.87647521,232.88,232.74,3.59128859]
[1759739113843,0.71,232.81,232.75,30.18]
[1759739114033,0.71,232.8,232.75,30.18]
[1759739114244,0.71,232.82,232.78,20.8]
[1759739114418,0.71,232.81,232.78,50.98]
[1759739114742,5.00569945,232.8,232.78,50.98]
[1759739114930,0.71,232.8,232.78,50.98]
[1759739115135,15.88108547,232.85,232.78,50.98]
[1759739115335,0.71,232.84,232.78,50.98]
[1759739115523,0.71,232.83,232.78,50.98]
[1759739115719,0.71,232.82,232.78,50.98]
[1759739116034,0.71,232.81,232.78,50.98]
[1759739116216,5.00546488,232.81,232.78,50.98]
[1759739116964,5.00540196,232.81,232.78,50.98]
[1759739117944,0.71,232.81,232.78,50.98]
[1759739118239,4.97536005,232.81,232.78,50.98]
[1759739118627,4.29536005,232.81,232.78,50.98]
[1759739119247,4.97536005,232.81,232.78,50.98]
[1759739119446,89.83698677,232.84,232.78,50.98]
[1759739119447,4.97497916,232.83,232.78,50.98]
[1759739120841,4.97534263,232.82,232.78,50.98]
[1759739122386,4.29497916,232.83,232.78,50.98]
[1759739122534,4.97497916,232.83,232.78,50.98]
[1759739122735,4.29497916,232.83,232.78,50.98]
[1759739123045,0.68,232.82,232.78,50.98]
[1759739124061,4.29534813,232.81,232.78,50.98]
[1759739125149,4.29534813,232.81,232.79,30.18]
[1759739126139,4.29497916,232.83,232.79,30.18]
[1759739126454,83.39483654,232.84,232.79,30.18]
[1759739126638,83.39483654,232.84,232.82,20.8]
[1759739126840,83.39483654,232.84,232.82,50.98]
[1759739128062,4.97497916,232.83,232.82,50.98]
[1759739129360,15.71242708,232.83,232.8,30.18]
[1759739129541,0.68,232.82,232.8,30.18]
[1759739129955,0.68,232.81,232.8,30.18]
[1759739130165,4.97534813,232.81,232.8,30.18]
[1759739131256,4.97534813,232.81,232.77,20.8]
[1759739131438,4.97534813,232.81,232.8,20.8]
[1759739131644,0.68,232.81,232.8,20.8]
[1759739132541,0.68,232.81,232.8,30.18]
[1759739132741,4.97534813,232.81,232.77,20.8]
[1759739132956,0.68,232.8,232.77,30.18]
[1759739133159,0.68,232.79,232.77,30.18]
[1759739133361,0.68,232.78,232.77,30.18]
[1759739134148,4.9759017,232.78,232.75,20.8]
[1759739134463,0.68,232.78,232.77,30.18]
[1759739134767,4.99558448,232.8,232.77,30.18]
[1759739136047,0.7,232.79,232.77,30.18]
[1759739136369,15.73371847,232.81,232.77,30.18]
[1759739136672,0.7,232.8,232.77,30.18]
[1759739137381,4.29571716,232.79,232.77,30.18]
[1759739141069,0.7,232.8,232.77,30.18]
[1759739142176,4.99563445,232.8,232.77,30.18]
[1759739143375,0.7,232.79,232.75,20.8]
[1759739143552,0.7,232.79,232.78,20.8]
[1759739143759,0.7,232.79,232.78,50.98]
[1759739143953,4.99563445,232.8,232.78,50.98]
[1759739145476,4.29537642,232.81,232.78,50.98]
[1759739145664,4.99537642,232.81,232.78,50.98]
[1759739148372,0.7,232.83,232.78,50.98]
[1759739148576,0.7,232.83,232.77,20.8]
[1759739148969,0.7,232.83,232.81,20.8]
[1759739149275,0.7,232.82,232.81,50.98]
[1759739150072,0.7,232.82,232.76,20.8]
[1759739150073,10.87647521,232.81,232.76,20.8]
[1759739150252,10.87647521,232.81,232.77,30.18]
[1759739150461,0.7,232.8,232.77,30.18]
[1759739150875,0.7,232.79,232.77,30.18]
[1759739151179,0.7,232.78,232.77,30.18]
[1759739151861,0.7,232.78,232.75,20.8]
[1759739152056,0.7,232.78,232.76,30.16]
[1759739152057,4.99600515,232.78,232.76,30.16]
[1759739152275,4.99600515,232.78,232.75,20.8]
[1759739152475,4.99600515,232.78,232.76,30.16]
[1759739153264,0.7,232.8,232.75,20.8]
[1759739153463,0.7,232.79,232.78,20.8]
[1759739154076,11.43847228,232.81,232.78,20.8]
[1759739154278,10.73847228,232.81,232.78,20.8]
[1759739154579,0.7,232.8,232.78,50.96]
[1759739155295,4.9957113,232.8,232.78,50.96]
[1759739155702,0.7,232.8,232.78,50.96]
[1759739156387,4.99559253,232.8,232.78,50.96]
[1759739156568,4.29559253,232.8,232.78,50.96]
[1759739156762,0.7,232.79,232.78,50.96]
[1759739157165,4.99571716,232.79,232.78,50.96]
[1759739157590,4.29571716,232.79,232.78,50.96]
[1759739157889,4.99571716,232.79,232.78,50.96]
[1759739158263,4.99571716,232.79,232.78,20.8]
[1759739160284,4.99571716,232.79,232.75,20.8]
[1759739160475,0.7,232.78,232.76,30.16]
[1759739160676,0.7,232.77,232.76,30.16]
[1759739161180,10.87647521,232.8,232.76,30.16]
[1759739161380,11.57647521,232.79,232.78,20.8]
[1759739161890,0.7,232.79,232.78,20.8]
[1759739162089,4.29534813,232.81,232.78,20.8]
[1759739162289,4.29534813,232.81,232.78,50.96]
[1759739162500,4.29571716,232.79,232.78,50.96]
[1759739163275,4.99571716,232.79,232.78,50.96]
[1759739164286,10.87647521,232.81,232.78,50.96]
[1759739164993,11.57647521,232.81,232.78,50.96]
[1759739165402,10.87647521,232.81,232.78,50.96]
[1759739165571,15.17195275,232.81,232.78,50.96]
[1759739166172,4.29547754,232.81,232.78,50.96]
[1759739166480,79.1,232.82,232.78,50.96]
[1759739167279,84.09522602,232.82,232.78,50.96]
[1759739167476,84.09522602,232.82,232.79,30.16]
[1759739167477,4.99550456,232.81,232.79,30.16]
[1759739167680,0.7,232.8,232.76,20.8]
[1759739167910,0.7,232.8,232.79,20.8]
[1759739168079,0.7,232.8,232.79,50.96]
[1759739168395,4.29550456,232.81,232.79,50.96]
[1759739168580,4.99550456,232.81,232.79,50.96]
[1759739169388,15.17197977,232.81,232.75,3.57732312]
[1759739169698,0.7,232.8,232.76,50.96]
[1759739169903,0.7,232.8,232.77,30.16]
[1759739170079,0.7,232.79,232.77,30.16]
[1759739170503,0.7,232.78,232.77,30.16]
[1759739170675,0.7,232.78,232.74,20.8]
[1759739170993,10.87647521,232.8,232.78,20.8]
[1759739171398,0.7,232.79,232.78,20.8]
[1759739171993,10.87647521,232.8,232.78,20.8]
[1759739172195,15.0338749,232.81,232.78,20.8]
[1759739172422,0.7,232.8,232.78,20.8]
[1759739172885,79.1,232.82,232.79,30.16]
[1759739173082,79.1,232.82,232.8,30.16]
[1759739173377,79.8,232.82,232.8,30.16]
[1759739173994,79.1,232.82,232.8,50.96]
[1759739174887,4.29468746,232.85,232.8,50.96]
[1759739175080,0.7,232.89,232.83,20.8]
[1759739175404,0.7,232.88,232.84,30.16]
[1759739175587,0.7,232.87,232.84,30.16]
[1759739175909,0.7,232.89,232.84,30.16]
[1759739176107,0.7,232.88,232.84,30.16]
[1759739176511,4.99416925,232.88,232.84,30.16]
[1759739177004,12.96935817,232.86,232.78,16.46752012]
[1759739177200,10.87647521,232.82,232.78,30.14]
[1759739177427,0.7,232.81,232.78,30.14]
[1759739177889,0.68,232.8,232.78,30.14]
[1759739178086,0.68,232.79,232.78,30.14]
[1759739178491,4.29553264,232.8,232.78,30.14]
[1759739178685,4.97553264,232.8,232.78,30.14]
[1759739179007,0.68,232.8,232.78,30.14]
[1759739179197,0.68,232.83,232.78,30.14]
[1759739179397,0.68,232.82,232.78,30.14]
[1759739179911,0.68,232.81,232.78,30.14]
[1759739180109,4.97461026,232.85,232.78,30.14]
[1759739180294,4.29461026,232.85,232.81,20.8]
[1759739180491,4.97461026,232.85,232.82,30.14]
[1759739181192,0.68,232.84,232.82,30.14]
[1759739181393,0.68,232.83,232.82,30.14]
[1759739183516,4.97497916,232.83,232.82,30.14]
[1759739183685,15.71242708,232.83,232.8,30.14]
[1759739183889,0.68,232.82,232.8,30.14]
[1759739185417,4.29533575,232.82,232.8,30.14]
[1759739186403,4.29497916,232.83,232.8,30.14]
[1759739186597,4.97497916,232.83,232.8,30.14]
[1759739187008,4.29497916,232.83,232.8,30.14]
[1759739187223,0.68,232.82,232.8,30.14]
[1759739187510,0.68,232.81,232.8,30.14]
[1759739187717,15.71242708,232.83,232.8,30.14]
[1759739187902,15.03242708,232.83,232.8,30.14]
[1759739188110,0.68,232.82,232.8,30.14]
[1759739188311,0.68,232.82,232.78,20.8]
[1759739188497,4.29534813,232.81,232.78,20.8]
[1759739188792,4.29534813,232.81,232.79,30.14]
[1759739188994,4.29534813,232.81,232.78,20.8]
[1759739189190,4.29534813,232.81,232.8,30.14]
[1759739189414,4.29534813,232.81,232.78,20.8]
[1759739189620,0.68,232.81,232.79,30.14]
[1759739189936,15.71242708,232.83,232.8,30.14]
[1759739190099,0.68,232.82,232.8,30.14]
[1759739190514,0.68,232.82,232.78,20.8]
[1759739190515,79.78,232.82,232.76,3.57732312]
[1759739190706,0.68,232.81,232.77,30.14]
[1759739190908,0.68,232.8,232.77,30.14]
[1759739191095,0.68,232.79,232.77,30.14]
[1759739191496,0.68,232.81,232.77,30.14]
[1759739191723,4.97551557,232.81,232.77,30.14]
[1759739192017,4.29551557,232.81,232.77,30.14]
[1759739195622,4.96551557,232.81,232.77,30.14]
[1759739195810,4.29551557,232.81,232.77,30.14]
[1759739196015,4.96551557,232.81,232.77,30.14]
[1759739196610,4.29551557,232.81,232.77,30.14]
[1759739196815,0.67,232.8,232.77,30.14]
[1759739197448,4.29551557,232.81,232.77,30.14]
[1759739198131,4.9656093,232.8,232.75,25.09644987]
[1759739198307,4.2956093,232.8,232.76,30.14]
[1759739199507,4.29534813,232.81,232.77,30.14]
[1759739199737,4.96534813,232.81,232.78,30.14]
[1759739199913,4.96534813,232.81,232.79,30.14]
[1759739200421,4.96534813,232.81,232.8,30.14]
[1759739200627,79.1,232.82,232.8,30.14]
[1759739200831,79.1,232.82,232.75,28.67377299]
[1759739200832,83.39517626,232.82,232.75,28.67377299]
[1759739201007,83.39517626,232.82,232.79,20.8]
[1759739201330,84.06517626,232.82,232.8,30.14]
[1759739202128,21.61273168,232.86,232.81,30.14]
[1759739202129,11.54647521,232.86,232.81,30.14]
[1759739202328,11.54647521,232.86,232.79,20.8]
[1759739202329,0.67,232.85,232.82,30.14]
[1759739202501,0.67,232.85,232.83,30.14]
[1759739202705,0.67,232.84,232.83,30.14]
[1759739204211,4.9647947,232.84,232.83,30.14]
[1759739207219,0.67,232.84,232.83,30.14]
[1759739207531,4.29461026,232.85,232.83,30.14]
[1759739207837,4.96461026,232.85,232.83,30.14]
[1759739208947,4.29461026,232.85,232.83,30.14]
[1759739209837,79.1,232.86,232.84,30.12]
[1759739210136,79.82,232.86,232.84,30.12]